[Event "*** Titled Tuesday Blitz"]
[Site "Chess.com"]
[Date "2021.03.02"]
[Round "8"]
[White "frederiksvane"]
[Black "tomsishere"]
[Result "0-1"]
[WhiteElo "2657"]
[BlackElo "2510"]
[TimeControl "180+1"]
[EndTime "11:32:39 PST"]
[Termination "tomsishere won by checkmate"]

1. e4 {[%clk 0:03:00.3]} 1... b6 {[%clk 0:02:59.5]} 2. d4 {[%clk 0:02:59.6]}
2... Bb7 {[%clk 0:02:59.9]} 3. Bd3 {[%clk 0:02:59.7]} 3... e6 {[%clk 0:03:00.2]}
4. Nf3 {[%clk 0:02:59.3]} 4... c5 {[%clk 0:03:00.7]} 5. O-O {[%clk 0:02:57]}
5... cxd4 {[%clk 0:03:00.7]} 6. Nxd4 {[%clk 0:02:57.9]} 6... Nc6 {[%clk
0:03:01]} 7. Nxc6 {[%clk 0:02:57]} 7... Bxc6 {[%clk 0:03:01.9]} 8. Nc3 {[%clk
0:02:55.7]} 8... Bc5 {[%clk 0:02:57.6]} 9. Qg4 {[%clk 0:02:52.9]} 9... Nf6
{[%clk 0:02:55.3]} 10. Qxg7 {[%clk 0:02:50.6]} 10... Rg8 {[%clk 0:02:55.8]} 11.
Qh6 {[%clk 0:02:50.8]} 11... Rg6 {[%clk 0:02:35.3]} 12. Qh4 {[%clk 0:02:46.1]}
12... Be7 {[%clk 0:02:32.8]} 13. Qh3 {[%clk 0:02:40.4]} 13... Qc7 {[%clk
0:02:29.5]} 14. e5 {[%clk 0:02:31.2]} 14... Rxg2+ {[%clk 0:02:22.5]} 15. Qxg2
{[%clk 0:02:23.6]} 15... Bxg2 {[%clk 0:02:21.5]} 16. Kxg2 {[%clk 0:01:48.6]}
16... Qxe5 {[%clk 0:02:15.8]} 17. f4 {[%clk 0:01:48.7]} 17... Qh5 {[%clk
0:02:11.6]} 18. Rf3 {[%clk 0:01:43.4]} 18... O-O-O {[%clk 0:02:08.8]} 19. Rg3
{[%clk 0:01:43.7]} 19... Rg8 {[%clk 0:02:05.6]} 20. Bd2 {[%clk 0:01:44]} 20...
Rxg3+ {[%clk 0:02:04.5]} 21. hxg3 {[%clk 0:01:44.9]} 21... Nd5 {[%clk
0:01:56.4]} 22. Rh1 {[%clk 0:01:43.1]} 22... Qg4 {[%clk 0:01:51.7]} 23. Nxd5
{[%clk 0:01:39.8]} 23... exd5 {[%clk 0:01:45.9]} 24. Rxh7 {[%clk 0:01:40]} 24...
Qe6 {[%clk 0:01:42.3]} 25. Bc3 {[%clk 0:01:36.5]} 25... d4 {[%clk 0:01:39.7]}
26. Bd2 {[%clk 0:01:31.1]} 26... Qd5+ {[%clk 0:01:36.8]} 27. Kf2 {[%clk
0:01:29.6]} 27... Bc5 {[%clk 0:01:30.8]} 28. b3 {[%clk 0:01:26.7]} 28... a5
{[%clk 0:01:28.3]} 29. a4 {[%clk 0:01:26.8]} 29... Bb4 {[%clk 0:01:21]} 30. Bxb4
{[%clk 0:01:22.1]} 30... axb4 {[%clk 0:01:20.3]} 31. Rg7 {[%clk 0:01:14.2]}
31... Qe6 {[%clk 0:01:17.9]} 32. Rg5 {[%clk 0:01:08.7]} 32... f6 {[%clk
0:01:14.7]} 33. Rb5 {[%clk 0:01:07.7]} 33... Qe3+ {[%clk 0:01:11.6]} 34. Kg2
{[%clk 0:01:08.1]} 34... Kc7 {[%clk 0:01:09.4]} 35. Kh3 {[%clk 0:01:06]} 35...
Qe1 {[%clk 0:01:04.5]} 36. Kg4 {[%clk 0:00:57.7]} 36... Qe6+ {[%clk 0:01:02.9]}
37. Kh4 {[%clk 0:00:54.7]} 37... d5 {[%clk 0:00:57.8]} 38. Rxb4 {[%clk
0:00:50.3]} 38... f5 {[%clk 0:00:51.2]} 39. Kh3 {[%clk 0:00:33]} 39... Qe1
{[%clk 0:00:41.1]} 40. Bxf5 {[%clk 0:00:21]} 40... Qxb4 {[%clk 0:00:40.5]} 41.
Bd3 {[%clk 0:00:21.2]} 41... Qd6 {[%clk 0:00:36.7]} 42. Kg4 {[%clk 0:00:20.6]}
42... Qf6 {[%clk 0:00:35.4]} 43. Kf3 {[%clk 0:00:20.7]} 43... Kd6 {[%clk
0:00:34.2]} 44. g4 {[%clk 0:00:21]} 44... Qe7 {[%clk 0:00:32.4]} 45. g5 {[%clk
0:00:20.3]} 45... Qe6 {[%clk 0:00:30.3]} 46. Kg3 {[%clk 0:00:19.5]} 46... Qe3+
{[%clk 0:00:27.2]} 47. Kg4 {[%clk 0:00:19.7]} 47... Ke6 {[%clk 0:00:26.6]} 48.
Bf5+ {[%clk 0:00:19.7]} 48... Kf7 {[%clk 0:00:25.8]} 49. Bd3 {[%clk 0:00:20.2]}
49... Qg1+ {[%clk 0:00:19.5]} 50. Kf3 {[%clk 0:00:18.7]} 50... Ke6 {[%clk
0:00:17.9]} 51. Bg6 {[%clk 0:00:03.4]} 51... Qd1+ {[%clk 0:00:15.5]} 52. Kg3
{[%clk 0:00:03.4]} 52... Qe1+ {[%clk 0:00:15.1]} 53. Kf3 {[%clk 0:00:03.7]}
53... Qf1+ {[%clk 0:00:14.5]} 54. Kg3 {[%clk 0:00:04]} 54... Qe2 {[%clk
0:00:12.2]} 55. Bd3 {[%clk 0:00:03.8]} 55... Qe3+ {[%clk 0:00:10.6]} 56. Kg4
{[%clk 0:00:04.3]} 56... Qg1+ {[%clk 0:00:10.5]} 57. Kf3 {[%clk 0:00:04.8]}
57... Qh2 {[%clk 0:00:10.7]} 58. Bg6 {[%clk 0:00:03.1]} 58... Ke7 {[%clk
0:00:10.3]} 59. Bd3 {[%clk 0:00:03.2]} 59... Kf7 {[%clk 0:00:10.2]} 60. Bf5
{[%clk 0:00:03.6]} 60... Qd2 {[%clk 0:00:09]} 61. Bd3 {[%clk 0:00:03.7]} 61...
Qe3+ {[%clk 0:00:09.9]} 62. Kg4 {[%clk 0:00:03.7]} 62... Kg7 {[%clk 0:00:09.1]}
63. Bf5 {[%clk 0:00:03.1]} 63... Qf2 {[%clk 0:00:07.2]} 64. Bd3 {[%clk
0:00:03.4]} 64... Qg2+ {[%clk 0:00:07.2]} 65. Kf5 {[%clk 0:00:03.9]} 65... Qh3+
{[%clk 0:00:04.7]} 66. Ke5 {[%clk 0:00:03.9]} 66... Qd7 {[%clk 0:00:05.2]} 67.
Bf5 {[%clk 0:00:02.4]} 67... Qc7+ {[%clk 0:00:04.4]} 68. Kxd5 {[%clk 0:00:01.4]}
68... Qc5+ {[%clk 0:00:05.3]} 69. Ke6 {[%clk 0:00:01.6]} 69... Qc8+ {[%clk
0:00:03.4]} 70. Ke5 {[%clk 0:00:01.8]} 70... Qc5+ {[%clk 0:00:04.3]} 71. Ke6
{[%clk 0:00:02]} 71... Qc3 {[%clk 0:00:04.7]} 72. Bd3 {[%clk 0:00:02]} 72... Qd2
{[%clk 0:00:04]} 73. Kf5 {[%clk 0:00:01.9]} 73... Qe3 {[%clk 0:00:04]} 74. Kg4
{[%clk 0:00:02.3]} 74... Kf7 {[%clk 0:00:04]} 75. f5 {[%clk 0:00:02.7]} 75...
Ke7 {[%clk 0:00:04]} 76. f6+ {[%clk 0:00:02.9]} 76... Kf7 {[%clk 0:00:04.1]} 77.
Bc4+ {[%clk 0:00:02.8]} 77... Kg6 {[%clk 0:00:03.5]} 78. Bd3+ {[%clk 0:00:03.3]}
78... Kf7 {[%clk 0:00:04.4]} 79. Bc4+ {[%clk 0:00:03.6]} 79... Kf8 {[%clk
0:00:04.6]} 80. g6 {[%clk 0:00:02.9]} 80... Qe4+ {[%clk 0:00:03.7]} 81. Kg5
{[%clk 0:00:03.4]} 81... Qe5+ {[%clk 0:00:03.8]} 82. Kg4 {[%clk 0:00:02.3]}
82... Qxf6 {[%clk 0:00:04.7]} 83. Bd3 {[%clk 0:00:02.7]} 83... Kg7 {[%clk
0:00:04.7]} 84. Kg3 {[%clk 0:00:03.2]} 84... Qd6+ {[%clk 0:00:05.1]} 85. Kf3
{[%clk 0:00:03.1]} 85... Qe5 {[%clk 0:00:05.5]} 86. b4 {[%clk 0:00:02.9]} 86...
Kf6 {[%clk 0:00:06.4]} 87. Kg4 {[%clk 0:00:02.6]} 87... Qe3 {[%clk 0:00:05.9]}
88. a5 {[%clk 0:00:02.4]} 88... Qg5+ {[%clk 0:00:05.7]} 89. Kf3 {[%clk
0:00:02.6]} 89... bxa5 {[%clk 0:00:06.5]} 90. bxa5 {[%clk 0:00:02.9]} 90... Qxa5
{[%clk 0:00:06.8]} 91. Kf4 {[%clk 0:00:02.6]} 91... Qe5+ {[%clk 0:00:06.6]} 92.
Kg4 {[%clk 0:00:03.1]} 92... Qe3 {[%clk 0:00:07.5]} 93. Kh4 {[%clk 0:00:01.9]}
93... Qg5+ {[%clk 0:00:07.2]} 94. Kh3 {[%clk 0:00:02.2]} 94... Ke5 {[%clk
0:00:07.5]} 95. Kh2 {[%clk 0:00:01.9]} 95... Kf4 {[%clk 0:00:07.5]} 96. g7
{[%clk 0:00:02.7]} 96... Qxg7 {[%clk 0:00:06.9]} 97. Kh1 {[%clk 0:00:02.8]}
97... Kf3 {[%clk 0:00:06]} 98. Be4+ {[%clk 0:00:03.7]} 98... Kxe4 {[%clk
0:00:05.3]} 99. c4 {[%clk 0:00:04.6]} 99... Kf3 {[%clk 0:00:05.3]} 100. Kh2
{[%clk 0:00:04.4]} 100... Qg2# {[%clk 0:00:05.9]} 0-1

[Event "*** Titled Tuesday Blitz"]
[Site "Chess.com"]
[Date "2021.03.02"]
[Round "9"]
[White "suneebaker"]
[Black "WcmDominicToretto"]
[Result "1-0"]
[WhiteElo "2150"]
[BlackElo "1906"]
[TimeControl "180+1"]
[EndTime "11:42:45 PST"]
[Termination "suneebaker won by resignation"]

1. e4 {[%clk 0:03:00.9]} 1... e5 {[%clk 0:02:56.1]} 2. Nf3 {[%clk 0:03:00.7]}
2... Nc6 {[%clk 0:02:49.2]} 3. Bc4 {[%clk 0:02:59.8]} 3... Bc5 {[%clk
0:02:39.6]} 4. d4 {[%clk 0:02:58.7]} 4... Bxd4 {[%clk 0:02:31.6]} 5. Nxd4 {[%clk
0:02:58.2]} 5... Nxd4 {[%clk 0:02:25.9]} 6. O-O {[%clk 0:02:55.6]} 6... Nf6
{[%clk 0:02:25.1]} 7. Bg5 {[%clk 0:02:53.7]} 7... h6 {[%clk 0:02:24.9]} 8. Bh4
{[%clk 0:02:52.8]} 8... a6 {[%clk 0:02:22.7]} 9. f4 {[%clk 0:02:46.8]} 9... b5
{[%clk 0:02:20.9]} 10. fxe5 {[%clk 0:02:40.3]} 10... g5 {[%clk 0:02:15.5]} 11.
Qxd4 {[%clk 0:02:22.9]} 11... Nh5 {[%clk 0:01:46.4]} 12. Bxf7+ {[%clk
0:02:19.6]} 12... Ke7 {[%clk 0:01:43.1]} 13. Bxh5 {[%clk 0:02:15.9]} 13... gxh4
{[%clk 0:01:39]} 1-0

[Event "*** Titled Tuesday Blitz"]
[Site "Chess.com"]
[Date "2021.03.02"]
[Round "9"]
[White "KarateBaby"]
[Black "Fortitudine"]
[Result "0-1"]
[WhiteElo "2210"]
[BlackElo "2329"]
[TimeControl "180+1"]
[EndTime "11:43:04 PST"]
[Termination "Fortitudine won by resignation"]

1. Nf3 {[%clk 0:02:48.4]} 1... c5 {[%clk 0:02:58]} 2. c4 {[%clk 0:02:39.4]} 2...
Nf6 {[%clk 0:02:57.4]} 3. Nc3 {[%clk 0:02:39.8]} 3... Nc6 {[%clk 0:02:55.5]} 4.
e3 {[%clk 0:02:33.9]} 4... g6 {[%clk 0:02:50.9]} 5. d4 {[%clk 0:02:15.8]} 5...
cxd4 {[%clk 0:02:51.8]} 6. exd4 {[%clk 0:02:14.9]} 6... d5 {[%clk 0:02:50.4]} 7.
cxd5 {[%clk 0:02:14.5]} 7... Nxd5 {[%clk 0:02:44.6]} 8. Bc4 {[%clk 0:01:58.8]}
8... Nxc3 {[%clk 0:02:42.5]} 9. Qb3 {[%clk 0:01:59.1]} 9... Nd5 {[%clk
0:02:03.1]} 10. Bxd5 {[%clk 0:01:52.2]} 10... e6 {[%clk 0:02:03.2]} 11. Bg5
{[%clk 0:01:37]} 11... Qa5+ {[%clk 0:01:58.7]} 0-1

[Event "*** Titled Tuesday Blitz"]
[Site "Chess.com"]
[Date "2021.03.02"]
[Round "9"]
[White "IriBu"]
[Black "K_A_S_T_O_R"]
[Result "0-1"]
[WhiteElo "2546"]
[BlackElo "2761"]
[TimeControl "180+1"]
[EndTime "11:43:35 PST"]
[Termination "K_A_S_T_O_R won by resignation"]

1. e4 {[%clk 0:03:00.9]} 1... c5 {[%clk 0:02:59.8]} 2. Be2 {[%clk 0:03:00.6]}
2... Nc6 {[%clk 0:02:57.9]} 3. f4 {[%clk 0:03:00.9]} 3... g6 {[%clk 0:02:57.5]}
4. Nf3 {[%clk 0:03:01.2]} 4... Bg7 {[%clk 0:02:58.2]} 5. O-O {[%clk 0:03:01.8]}
5... e6 {[%clk 0:02:58.4]} 6. c3 {[%clk 0:03:02.1]} 6... d5 {[%clk 0:02:58]} 7.
e5 {[%clk 0:03:01.1]} 7... d4 {[%clk 0:02:58.1]} 8. d3 {[%clk 0:02:59.9]} 8...
Nge7 {[%clk 0:02:58.2]} 9. cxd4 {[%clk 0:02:58.3]} 9... Nxd4 {[%clk 0:02:57.5]}
10. Be3 {[%clk 0:02:53.7]} 10... Nef5 {[%clk 0:02:55.4]} 11. Bf2 {[%clk
0:02:54.1]} 11... O-O {[%clk 0:02:49.7]} 12. Nc3 {[%clk 0:02:53.8]} 12... b6
{[%clk 0:02:49.9]} 13. g4 {[%clk 0:02:49.3]} 13... Nxe2+ {[%clk 0:02:44]} 14.
Qxe2 {[%clk 0:02:47.6]} 14... Ne7 {[%clk 0:02:44.9]} 15. Ne4 {[%clk 0:02:43.3]}
15... Ba6 {[%clk 0:02:43.5]} 16. Rad1 {[%clk 0:02:41.7]} 16... Qd5 {[%clk
0:02:40]} 17. Bh4 {[%clk 0:02:39.7]} 17... Nc6 {[%clk 0:02:33.9]} 18. Nf6+
{[%clk 0:02:36]} 18... Bxf6 {[%clk 0:02:33.3]} 19. Bxf6 {[%clk 0:02:31.5]} 19...
Bb7 {[%clk 0:02:27.5]} 20. Qf2 {[%clk 0:02:31.1]} 20... Nd4 {[%clk 0:02:24.7]}
21. Kg2 {[%clk 0:02:25]} 21... Nxf3 {[%clk 0:02:20.8]} 22. Kg3 {[%clk
0:02:16.6]} 22... Nd4 {[%clk 0:02:16.6]} 23. Rde1 {[%clk 0:02:07]} 23... h6
{[%clk 0:02:14.7]} 24. Re3 {[%clk 0:02:03.6]} 24... Kh7 {[%clk 0:02:13.5]} 25.
h4 {[%clk 0:02:01.1]} 25... h5 {[%clk 0:02:09]} 26. Re4 {[%clk 0:01:56.5]} 26...
Rg8 {[%clk 0:02:04.3]} 27. Kh3 {[%clk 0:01:54]} 27... hxg4+ {[%clk 0:01:59.2]}
28. Kxg4 {[%clk 0:01:53.4]} 28... Nf5 {[%clk 0:01:59.6]} 29. Kh3 {[%clk
0:01:46.9]} 29... Qxd3+ {[%clk 0:01:58.6]} 0-1

[Event "*** Titled Tuesday Blitz"]
[Site "Chess.com"]
[Date "2021.03.02"]
[Round "9"]
[White "VladimirBugayev"]
[Black "Maddie"]
[Result "1-0"]
[WhiteElo "2295"]
[BlackElo "2064"]
[TimeControl "180+1"]
[EndTime "11:43:41 PST"]
[Termination "VladimirBugayev won by resignation"]

1. e4 {[%clk 0:03:00.9]} 1... c5 {[%clk 0:02:59.9]} 2. Nc3 {[%clk 0:03:00.3]}
2... Nc6 {[%clk 0:02:59.5]} 3. Bb5 {[%clk 0:03:00.9]} 3... Nf6 {[%clk
0:02:55.9]} 4. Bxc6 {[%clk 0:02:54.9]} 4... dxc6 {[%clk 0:02:52.4]} 5. f4 {[%clk
0:02:51.3]} 5... Bg4 {[%clk 0:02:51.9]} 6. Nf3 {[%clk 0:02:50]} 6... e6 {[%clk
0:02:52.2]} 7. h3 {[%clk 0:02:44.1]} 7... Bh5 {[%clk 0:02:49.3]} 8. g4 {[%clk
0:02:24.5]} 8... Bg6 {[%clk 0:02:49.1]} 9. f5 {[%clk 0:02:21.3]} 9... Nxe4
{[%clk 0:02:44.7]} 10. fxg6 {[%clk 0:02:12.8]} 10... Nxc3 {[%clk 0:02:41.4]} 11.
gxf7+ {[%clk 0:02:12.3]} 11... Kxf7 {[%clk 0:02:39.1]} 12. dxc3 {[%clk 0:02:05]}
12... Bd6 {[%clk 0:02:37.7]} 13. Ng5+ {[%clk 0:01:48.6]} 13... Kg8 {[%clk
0:02:25.8]} 14. O-O {[%clk 0:01:43.1]} 14... h6 {[%clk 0:02:25.3]} 15. Nf7
{[%clk 0:01:41.1]} 15... Qh4 {[%clk 0:02:22.3]} 16. Qxd6 {[%clk 0:01:17.7]}
16... Qxh3 {[%clk 0:02:18.8]} 17. Qh2 {[%clk 0:00:58.6]} 17... Qxg4+ {[%clk
0:02:16]} 18. Qg2 {[%clk 0:00:59.1]} 18... Qh5 {[%clk 0:02:12.6]} 19. Nxh8
{[%clk 0:00:57.5]} 1-0

[Event "*** Titled Tuesday Blitz"]
[Site "Chess.com"]
[Date "2021.03.02"]
[Round "9"]
[White "louis198"]
[Black "Gogolev_Artemy"]
[Result "1-0"]
[WhiteElo "2631"]
[BlackElo "2488"]
[TimeControl "180+1"]
[EndTime "11:44:06 PST"]
[Termination "louis198 won by resignation"]

1. d4 {[%clk 0:03:00.9]} 1... Nf6 {[%clk 0:02:59.2]} 2. c4 {[%clk 0:03:00.9]}
2... e6 {[%clk 0:02:58.5]} 3. Nc3 {[%clk 0:03:00.6]} 3... Bb4 {[%clk 0:02:58.6]}
4. Qb3 {[%clk 0:03:00.8]} 4... c5 {[%clk 0:02:53.7]} 5. e3 {[%clk 0:03:00.3]}
5... d5 {[%clk 0:02:46.7]} 6. cxd5 {[%clk 0:02:56.4]} 6... exd5 {[%clk 0:02:40]}
7. dxc5 {[%clk 0:02:55.7]} 7... Nc6 {[%clk 0:02:38.6]} 8. Bb5 {[%clk 0:02:54]}
8... Bxc5 {[%clk 0:02:34.7]} 9. Nge2 {[%clk 0:02:52.9]} 9... O-O {[%clk
0:02:34.2]} 10. O-O {[%clk 0:02:52.1]} 10... Bd6 {[%clk 0:02:13.9]} 11. Ng3
{[%clk 0:02:44.1]} 11... d4 {[%clk 0:01:58.2]} 12. Bxc6 {[%clk 0:02:42]} 12...
bxc6 {[%clk 0:01:54.7]} 13. exd4 {[%clk 0:02:42.1]} 13... Bxg3 {[%clk
0:01:54.1]} 14. hxg3 {[%clk 0:02:42.2]} 14... Qxd4 {[%clk 0:01:54.2]} 15. Be3
{[%clk 0:02:41.7]} 15... Qg4 {[%clk 0:01:53.1]} 16. Qd1 {[%clk 0:02:38.7]} 16...
Qg6 {[%clk 0:01:52]} 17. Qd6 {[%clk 0:02:33.7]} 17... Be6 {[%clk 0:01:46]} 18.
Rfd1 {[%clk 0:02:25.3]} 18... Ng4 {[%clk 0:01:43.4]} 19. Qc5 {[%clk 0:02:14.5]}
19... Rfd8 {[%clk 0:01:38.3]} 20. Ne2 {[%clk 0:02:04.3]} 20... Rxd1+ {[%clk
0:01:30.1]} 21. Rxd1 {[%clk 0:02:02.8]} 21... Nxe3 {[%clk 0:01:29]} 22. Qxe3
{[%clk 0:02:01.6]} 22... Bxa2 {[%clk 0:01:29]} 23. Qxa7 {[%clk 0:01:57.1]} 23...
Re8 {[%clk 0:01:23.7]} 24. Qxa2 {[%clk 0:01:55.3]} 24... Qc2 {[%clk 0:01:19]}
25. Nc3 {[%clk 0:01:45.6]} 1-0

[Event "*** Titled Tuesday Blitz"]
[Site "Chess.com"]
[Date "2021.03.02"]
[Round "9"]
[White "ZiggyStardust64"]
[Black "ljuks68"]
[Result "1-0"]
[WhiteElo "2626"]
[BlackElo "2455"]
[TimeControl "180+1"]
[EndTime "11:44:29 PST"]
[Termination "ZiggyStardust64 won by resignation"]

1. d4 {[%clk 0:03:00.9]} 1... d5 {[%clk 0:02:25.8]} 2. Bf4 {[%clk 0:02:59.8]}
2... Nf6 {[%clk 0:02:25.1]} 3. e3 {[%clk 0:03:00.1]} 3... c5 {[%clk 0:02:25.4]}
4. dxc5 {[%clk 0:02:59.6]} 4... Nc6 {[%clk 0:02:24.3]} 5. Bb5 {[%clk 0:02:54.7]}
5... Bd7 {[%clk 0:02:20.3]} 6. Nc3 {[%clk 0:02:43.9]} 6... e6 {[%clk 0:02:18.8]}
7. Bxc6 {[%clk 0:02:36.9]} 7... bxc6 {[%clk 0:02:18.7]} 8. b4 {[%clk 0:02:34.8]}
8... a5 {[%clk 0:02:18.6]} 9. a3 {[%clk 0:02:35]} 9... g6 {[%clk 0:02:06.1]} 10.
Nge2 {[%clk 0:02:34.5]} 10... Bg7 {[%clk 0:02:05.9]} 11. Bd6 {[%clk 0:02:34.9]}
11... Ne4 {[%clk 0:02:00]} 12. Nxe4 {[%clk 0:02:32.9]} 12... dxe4 {[%clk
0:01:56.2]} 13. Rb1 {[%clk 0:02:28.8]} 13... f5 {[%clk 0:01:51.6]} 14. O-O
{[%clk 0:02:24.3]} 14... Kf7 {[%clk 0:01:51.4]} 15. c4 {[%clk 0:02:19.3]} 15...
Qe8 {[%clk 0:01:39.6]} 16. Qb3 {[%clk 0:01:56.1]} 16... a4 {[%clk 0:01:39.4]}
17. Qc2 {[%clk 0:01:54.7]} 17... e5 {[%clk 0:01:35.1]} 18. Rfd1 {[%clk
0:01:45.4]} 18... g5 {[%clk 0:01:32.4]} 19. Nc3 {[%clk 0:01:41.5]} 19... Qe6
{[%clk 0:01:25.2]} 20. Nxa4 {[%clk 0:01:39]} 20... Qh6 {[%clk 0:01:06.1]} 21.
Nb6 {[%clk 0:01:35.5]} 21... Rad8 {[%clk 0:01:04]} 22. Bc7 {[%clk 0:01:33.7]}
1-0

[Event "*** Titled Tuesday Blitz"]
[Site "Chess.com"]
[Date "2021.03.02"]
[Round "9"]
[White "Zhigalko_Sergei"]
[Black "Duhless"]
[Result "1-0"]
[WhiteElo "2920"]
[BlackElo "3055"]
[TimeControl "180+1"]
[EndTime "11:44:52 PST"]
[Termination "Zhigalko_Sergei won by resignation"]

1. e4 {[%clk 0:03:00.9]} 1... c5 {[%clk 0:03:00.1]} 2. c3 {[%clk 0:02:59.6]}
2... Nf6 {[%clk 0:02:57.4]} 3. e5 {[%clk 0:03:00]} 3... Nd5 {[%clk 0:02:58]} 4.
Nf3 {[%clk 0:03:00.9]} 4... Nc6 {[%clk 0:02:57.4]} 5. Bc4 {[%clk 0:03:01.4]}
5... Nb6 {[%clk 0:02:56.6]} 6. Bb3 {[%clk 0:03:01.8]} 6... c4 {[%clk 0:02:57]}
7. Bc2 {[%clk 0:03:02]} 7... d5 {[%clk 0:02:57.6]} 8. exd6 {[%clk 0:03:01.9]}
8... Qxd6 {[%clk 0:02:57.8]} 9. O-O {[%clk 0:03:02.8]} 9... Bg4 {[%clk 0:02:54]}
10. Re1 {[%clk 0:03:03]} 10... O-O-O {[%clk 0:02:52.2]} 11. b3 {[%clk 0:03:01]}
11... e5 {[%clk 0:02:48.7]} 12. Na3 {[%clk 0:02:58.3]} 12... f5 {[%clk
0:02:47.9]} 13. h3 {[%clk 0:02:56.6]} 13... Bxh3 {[%clk 0:02:28.2]} 14. gxh3
{[%clk 0:02:35.5]} 14... e4 {[%clk 0:02:28]} 15. Nxc4 {[%clk 0:02:26.5]} 15...
Nxc4 {[%clk 0:02:21]} 16. bxc4 {[%clk 0:02:27.4]} 16... Qg6+ {[%clk 0:02:18]}
17. Kh1 {[%clk 0:02:19.8]} 17... Bd6 {[%clk 0:02:17.9]} 18. d4 {[%clk
0:02:06.3]} 18... Qh5 {[%clk 0:02:17.4]} 19. Ng5 {[%clk 0:01:15]} 19... Qh4
{[%clk 0:02:17.2]} 20. Bxe4 {[%clk 0:01:05.3]} 20... Qxf2 {[%clk 0:02:05.3]} 21.
Re2 {[%clk 0:00:49]} 21... Qh4 {[%clk 0:02:05.1]} 22. Bxf5+ {[%clk 0:00:42.3]}
22... Kb8 {[%clk 0:02:04.8]} 23. Nf7 {[%clk 0:00:42.4]} 23... Qh5 {[%clk
0:02:04.2]} 24. Nxd6 {[%clk 0:00:39]} 24... Qf3+ {[%clk 0:01:58.1]} 25. Kh2
{[%clk 0:00:31.7]} 25... Rxd6 {[%clk 0:01:56.9]} 26. Re8+ {[%clk 0:00:31]} 1-0

[Event "*** Titled Tuesday Blitz"]
[Site "Chess.com"]
[Date "2021.03.02"]
[Round "9"]
[White "andrzej"]
[Black "Yaryi_sergey"]
[Result "0-1"]
[WhiteElo "2358"]
[BlackElo "2486"]
[TimeControl "180+1"]
[EndTime "11:45:11 PST"]
[Termination "Yaryi_sergey won by resignation"]

1. e4 {[%clk 0:02:59.4]} 1... g6 {[%clk 0:02:59.4]} 2. Nc3 {[%clk 0:02:58.9]}
2... Bg7 {[%clk 0:02:58.7]} 3. f4 {[%clk 0:02:59.2]} 3... c5 {[%clk 0:02:56.3]}
4. Nf3 {[%clk 0:02:58.5]} 4... Nc6 {[%clk 0:02:55.9]} 5. Bc4 {[%clk 0:02:58.3]}
5... e6 {[%clk 0:02:55.4]} 6. O-O {[%clk 0:02:58.7]} 6... Nge7 {[%clk
0:02:55.2]} 7. d4 {[%clk 0:02:58.9]} 7... d5 {[%clk 0:02:54.7]} 8. exd5 {[%clk
0:02:52.1]} 8... exd5 {[%clk 0:02:53.9]} 9. Bb5 {[%clk 0:02:51]} 9... cxd4
{[%clk 0:02:52.4]} 10. Ne2 {[%clk 0:02:51.2]} 10... Qb6 {[%clk 0:02:49.1]} 11.
Bxc6+ {[%clk 0:02:43.9]} 11... bxc6 {[%clk 0:02:48]} 12. Kh1 {[%clk 0:02:42.6]}
12... c5 {[%clk 0:02:47.3]} 13. a4 {[%clk 0:02:30.2]} 13... a5 {[%clk
0:02:46.6]} 14. Ng3 {[%clk 0:02:23]} 14... O-O {[%clk 0:02:45.6]} 15. Re1 {[%clk
0:02:21.6]} 15... Nf5 {[%clk 0:02:44.9]} 16. Ne5 {[%clk 0:02:17]} 16... Nxg3+
{[%clk 0:02:43]} 17. hxg3 {[%clk 0:02:17.9]} 17... Bf5 {[%clk 0:02:39.6]} 18. g4
{[%clk 0:02:15.3]} 18... Be4 {[%clk 0:02:39.1]} 19. Nd7 {[%clk 0:02:13.7]} 19...
Qd8 {[%clk 0:02:36]} 20. Nxf8 {[%clk 0:02:13.6]} 20... Qh4+ {[%clk 0:02:35.4]}
21. Kg1 {[%clk 0:02:14]} 21... Rxf8 {[%clk 0:02:34.4]} 22. Ra3 {[%clk
0:02:07.2]} 22... c4 {[%clk 0:02:26]} 23. Rh3 {[%clk 0:01:59.3]} 23... Qd8
{[%clk 0:02:25.1]} 24. f5 {[%clk 0:01:49.7]} 24... Qb6 {[%clk 0:02:24.4]} 25.
Kh1 {[%clk 0:01:25.4]} 25... d3 {[%clk 0:02:22.7]} 26. cxd3 {[%clk 0:01:24.8]}
26... cxd3 {[%clk 0:02:22.4]} 27. Rxd3 {[%clk 0:01:19.3]} 27... Qf2 {[%clk
0:02:05.2]} 28. Rxe4 {[%clk 0:01:09.7]} 28... dxe4 {[%clk 0:02:04.7]} 29. Rd8
{[%clk 0:01:09]} 29... e3 {[%clk 0:02:00.6]} 30. Rxf8+ {[%clk 0:01:05.6]} 30...
Bxf8 {[%clk 0:02:00.2]} 31. Qg1 {[%clk 0:00:39.3]} 31... Qh4+ {[%clk 0:01:58.5]}
32. Qh2 {[%clk 0:00:39.6]} 32... Qxh2+ {[%clk 0:01:57.9]} 33. Kxh2 {[%clk
0:00:40]} 33... e2 {[%clk 0:01:58.8]} 34. Bd2 {[%clk 0:00:40.2]} 34... Bb4
{[%clk 0:01:58.3]} 0-1